bitfinex-derivatives/quotes_BTCF0:USTF0_20241210
["timestamp","ask_amount","ask_price","bid_price","bid_amount"]
[1733813539072,0.0091995,97316.0,97309.0,0.001]
[1733813539275,0.051364,97319.0,97314.0,0.24368243]
[1733813539573,0.00052001,97318.0,97316.0,0.24368243]
[1733813540170,0.051365,97318.0,97316.0,0.24368243]
[1733813540475,0.3608,97327.0,97316.0,0.24368243]
[1733813540476,0.41216,97327.0,97316.0,0.24368243]
[1733813540774,0.3608,97327.0,97322.0,0.18256789]
[1733813540967,0.3608,97327.0,97326.0,4e-05]
[1733813540968,0.41216,97327.0,97326.0,4e-05]
[1733813542174,0.42120298,97327.0,97326.0,4e-05]
[1733813542965,0.42220298,97327.0,97326.0,4e-05]
[1733813543572,0.42220298,97327.0,97326.0,0.00325085]
[1733813544269,0.42220298,97327.0,97326.0,0.00325086]
[1733813545276,0.06040298,97327.0,97326.0,0.00325086]
[1733813545469,0.06140298,97327.0,97326.0,0.00325086]
[1733813546472,0.06040298,97327.0,97326.0,0.00325086]
[1733813546671,0.06140298,97327.0,97326.0,0.00325086]
[1733813547072,0.06040298,97327.0,97326.0,0.00325086]
[1733813547381,0.06140298,97327.0,97326.0,0.00325086]
[1733813548784,0.01004298,97327.0,97326.0,0.00425086]
[1733813549369,0.00904298,97327.0,97326.0,0.00625086]
[1733813549570,0.05548815,97336.0,97326.0,0.00625086]
[1733813549571,0.051358,97331.0,97326.0,0.00625086]
[1733813549775,0.00904773,97336.0,97330.0,0.24363129]
[1733813550081,0.051356,97336.0,97335.0,0.18272229]
[1733813550672,0.36132001,97352.0,97335.0,4e-05]
[1733813550673,0.00891498,97337.0,97335.0,4e-05]
[1733813550867,0.00052001,97352.0,97343.0,0.051352]
[1733813550868,0.051347,97352.0,97343.0,0.051352]
[1733813551068,0.051347,97352.0,97343.0,0.7197242]
[1733813551273,0.051347,97352.0,97343.0,0.67183772]
[1733813551484,0.00901196,97350.0,97343.0,0.67183772]
[1733813552180,0.00108,97344.0,97343.0,0.67183772]
[1733813554689,0.00108,97344.0,97343.0,0.66862733]
[1733813554980,0.00108,97344.0,97343.0,0.67183716]
[1733813557682,0.00108,97344.0,97343.0,0.62048516]
[1733813559380,0.00108,97344.0,97343.0,0.36404983]
[1733813562093,0.00108,97344.0,97343.0,0.72484983]
[1733813568586,0.00108,97344.0,97343.0,0.36404983]
[1733813570997,0.00108,97344.0,97343.0,0.60763863]
[1733813571288,0.00108,97344.0,97343.0,0.36404983]
[1733813571480,0.00108,97344.0,97343.0,0.60763863]
[1733813571893,0.00108,97344.0,97343.0,0.36404983]
[1733813575098,0.00108,97344.0,97343.0,0.60763863]
[1733813575302,0.00108,97344.0,97343.0,0.36404983]
[1733813575493,0.00108,97344.0,97343.0,0.60763909]
[1733813576591,0.00108,97344.0,97343.0,0.36405029]
[1733813578390,0.00108,97344.0,97343.0,0.36084]
[1733813579291,0.00108,97344.0,97343.0,4e-05]
[1733813580500,0.00108,97344.0,97343.0,0.00325037]
[1733813583305,0.00108,97344.0,97343.0,0.26111147]
[1733813583693,0.00108,97344.0,97343.0,0.2579011]
[1733813584006,0.00108,97344.0,97343.0,0.26111112]
[1733813584798,0.00108,97344.0,97343.0,0.6273092]
[1733813585102,0.00108,97344.0,97343.0,0.26111112]
[1733813585791,0.00108,97344.0,97343.0,0.26111106]
[1733813587697,0.00108,97344.0,97343.0,0.62763608]
[1733813588195,0.00108,97344.0,97343.0,0.26111106]
[1733813588597,0.00108,97344.0,97343.0,0.26118748]
[1733813589308,0.001,97344.0,97343.0,0.26118748]
[1733813590000,0.001,97344.0,97343.0,0.26118742]
[1733813593400,0.001,97344.0,97343.0,0.60343767]
[1733813593997,0.001,97344.0,97343.0,0.63384179]
[1733813595400,0.001,97344.0,97343.0,0.59934232]
[1733813596291,0.001,97344.0,97343.0,0.59613242]
[1733813596499,0.001,97344.0,97343.0,0.59934214]
[1733813598709,0.001,97344.0,97343.0,0.96014214]
[1733813599502,0.001,97344.0,97343.0,0.95693242]
[1733813600199,0.001,97344.0,97343.0,0.64920711]
[1733813600600,0.001,97344.0,97343.0,0.95759892]
[1733813600908,0.001,97344.0,97343.0,0.64920711]
[1733813601501,0.001,97344.0,97343.0,0.61900711]
[1733813602004,0.001,97344.0,97343.0,0.92737659]
[1733813602199,0.001,97344.0,97343.0,0.92793067]
[1733813602605,0.001,97344.0,97343.0,0.61955377]
[1733813604108,0.001,97344.0,97343.0,0.98610741]
[1733813604305,0.001,97344.0,97343.0,0.98611499]
[1733813604700,0.001,97344.0,97343.0,0.61955377]
[1733813605907,0.051349,97348.0,97343.0,0.61955377]
[1733813606114,0.003,97344.0,97343.0,0.36084]
[1733813606313,0.003,97344.0,97343.0,0.61945314]
[1733813606608,0.004,97344.0,97343.0,0.61945314]
[1733813606809,0.004,97344.0,97343.0,0.61948665]
[1733813607808,0.004,97344.0,97343.0,0.92790689]
[1733813608117,0.001,97344.0,97343.0,0.92790689]
[1733813608416,0.001,97344.0,97343.0,0.61948665]
[1733813608815,0.004,97344.0,97343.0,0.61948665]
[1733813609513,0.004,97344.0,97343.0,0.92790046]
[1733813610514,0.004,97344.0,97343.0,0.61948665]
[1733813611113,0.004,97344.0,97343.0,0.92817244]
[1733813612105,0.004,97344.0,97343.0,0.61948665]
[1733813612311,0.03627436,97370.0,97357.0,0.051344]
[1733813612521,0.03627436,97370.0,97357.0,0.97994019]
[1733813613613,0.00108263,97358.0,97357.0,0.97994019]
[1733813614814,0.00208263,97358.0,97357.0,1.33906289]
[1733813615014,0.00208263,97358.0,97357.0,0.98094019]
[1733813615919,0.00208263,97358.0,97357.0,0.99034638]
[1733813616713,0.00208263,97358.0,97357.0,1.35114638]
[1733813620631,0.00208263,97358.0,97357.0,1.3487653]
[1733813621016,0.00208263,97358.0,97357.0,1.3519744]
[1733813622828,0.00208263,97358.0,97357.0,1.04450865]
[1733813623022,0.00208263,97358.0,97357.0,1.35170776]
[1733813623426,0.00208263,97358.0,97357.0,1.38620957]
[1733813624819,0.00208263,97358.0,97357.0,1.35170776]
[1733813625220,0.00208263,97358.0,97357.0,0.78655929]
[1733813625425,0.00208263,97358.0,97357.0,1.35150248]
[1733813626028,0.00208263,97358.0,97357.0,1.34829338]
[1733813626929,0.00208263,97358.0,97357.0,1.04108425]
[1733813630649,0.00208263,97358.0,97357.0,1.34869978]
[1733813630835,0.03987351,97373.0,97372.0,0.051336]
[1733813630836,0.0305,97373.0,97372.0,0.051336]
[1733813631039,0.0305,97373.0,97372.0,0.66987006]
[1733813631238,0.0305,97373.0,97372.0,0.66991006]
[1733813631939,0.0315,97373.0,97372.0,0.67098026]
[1733813633535,0.0315,97373.0,97372.0,1.04677114]
[1733813633838,0.0315,97373.0,97372.0,0.67957974]
[1733813633839,0.0305,97373.0,97372.0,0.67957974]
[1733813634241,0.0305,97373.0,97372.0,1.04577114]
[1733813635549,0.0305,97373.0,97372.0,1.04557448]
[1733813635744,0.0305,97373.0,97372.0,0.67957974]
[1733813635945,0.0305,97373.0,97372.0,1.04557448]
[1733813636653,0.0305,97373.0,97372.0,0.67957974]
[1733813637251,0.0305,97373.0,97372.0,0.68278838]
[1733813638142,0.0305,97373.0,97372.0,0.98945918]
[1733813639343,0.0305,97373.0,97372.0,0.6218529]
[1733813639546,0.081836,97373.0,97372.0,0.6218529]
[1733813639745,0.081836,97373.0,97372.0,0.36411884]
[1733813640057,0.081836,97373.0,97372.0,0.31411884]
[1733813640449,0.081836,97373.0,97372.0,0.31411936]
[1733813640750,0.081836,97373.0,97372.0,0.6194263]
[1733813641053,0.081836,97373.0,97372.0,0.31411936]
[1733813641654,0.081836,97373.0,97372.0,0.57206997]
[1733813642647,0.081836,97373.0,97372.0,0.26126997]
[1733813642841,0.081836,97373.0,97372.0,0.30576194]
[1733813643049,0.081836,97373.0,97372.0,0.30897119]
[1733813643356,0.081836,97373.0,97372.0,0.56635136]
[1733813643559,0.081836,97373.0,97372.0,0.26069962]
[1733813644252,0.081836,97373.0,97372.0,0.30903897]
[1733813644443,0.081836,97373.0,97372.0,0.26056931]
[1733813644650,0.0305,97373.0,97372.0,0.26056931]
[1733813645653,0.0638,97379.0,97374.0,0.051335]
[1733813645955,0.0638,97379.0,97375.0,0.62125911]
[1733813646153,0.0638,97379.0,97376.0,0.26045884]
[1733813646454,0.0638,97379.0,97377.0,0.26045884]
[1733813646659,0.0638,97379.0,97378.0,0.26049884]
[1733813648062,0.0638,97379.0,97378.0,0.26149884]
[1733813653147,0.00933818,97382.0,97378.0,0.26149884]
[1733813653352,0.0303,97387.0,97380.0,0.051331]
[1733813653659,0.0303,97387.0,97386.0,4e-05]
[1733813653859,0.0303,97387.0,97386.0,0.00324898]
[1733813655363,0.03985782,97387.0,97386.0,0.00324898]
[1733813656261,0.03985782,97387.0,97386.0,0.00424898]
[1733813656952,0.03985782,97387.0,97386.0,0.56699889]
[1733813657259,0.03985782,97387.0,97386.0,0.26140418]
[1733813659068,0.03985782,97387.0,97386.0,0.26140387]
[1733813659953,0.03985782,97387.0,97386.0,0.2581952]
[1733813660156,0.03985782,97387.0,97386.0,0.26140387]
[1733813660558,0.00955782,97387.0,97386.0,0.26140387]
[1733813660869,0.051328,97388.0,97386.0,0.26140387]
[1733813661065,0.051328,97388.0,97387.0,0.5658897]
[1733813661460,0.051328,97388.0,97387.0,0.3087345]
[1733813661888,0.051328,97388.0,97387.0,0.56586179]
[1733813662169,0.051328,97388.0,97387.0,0.3087745]
[1733813662764,0.051328,97388.0,97387.0,0.00424867]
[1733813663065,0.051328,97388.0,97387.0,0.3097745]
[1733813663259,0.051328,97388.0,97387.0,0.30977454]
[1733813663666,0.051328,97388.0,97387.0,0.56698546]
[1733813664060,0.06099331,97388.0,97387.0,0.56698546]
[1733813664369,0.06099331,97388.0,97387.0,0.00424871]
[1733813664667,0.06099331,97388.0,97387.0,0.30977454]
[1733813665060,0.06099331,97388.0,97387.0,0.00424871]
[1733813665671,0.06099331,97388.0,97387.0,0.00424872]
[1733813666467,0.06099331,97388.0,97387.0,0.00104]
[1733813667370,0.06099331,97388.0,97387.0,0.30656583]
[1733813668366,0.06099331,97388.0,97387.0,0.56802938]
[1733813668571,0.06099331,97388.0,97387.0,0.30977451]
[1733813670261,0.06099331,97388.0,97387.0,0.56698982]
[1733813670574,0.06099331,97388.0,97387.0,0.30977451]
[1733813670868,0.06099331,97388.0,97387.0,0.00424868]
[1733813673966,0.06099331,97388.0,97387.0,0.24888732]
[1733813674560,0.06099331,97388.0,97387.0,0.00424868]
[1733813675563,0.051329,97386.0,97381.0,0.23548432]
[1733813675758,0.3608,97382.0,97365.0,0.00068]
[1733813675963,0.3608,97366.0,97353.0,0.0629]
[1733813676172,0.051346,97354.0,97353.0,0.0629]
[1733813676368,0.051346,97354.0,97353.0,0.30670126]
[1733813676574,0.051346,97354.0,97353.0,0.0629]
[1733813676963,0.051426,97354.0,97353.0,0.0629]
[1733813677579,0.051426,97354.0,97353.0,0.28701686]
[1733813678475,0.051426,97354.0,97353.0,0.29001686]
[1733813679274,0.051426,97354.0,97353.0,0.0679]
[1733813682777,0.051426,97354.0,97353.0,0.0659]
[1733813682973,0.051426,97354.0,97353.0,0.0639]
[1733813683172,0.051426,97354.0,97353.0,0.0649]
[1733813685274,0.051426,97354.0,97353.0,0.0629]
[1733813685570,0.052426,97354.0,97353.0,0.0629]
[1733813686077,0.052426,97354.0,97353.0,0.0639]
[1733813686374,0.052426,97354.0,97353.0,0.0338]
[1733813687467,0.052426,97354.0,97353.0,0.001]
[1733813687674,0.052426,97354.0,97353.0,0.00420993]
[1733813688071,0.051426,97354.0,97353.0,0.00520993]
[1733813688475,0.051426,97354.0,97353.0,0.00420993]
[1733813688680,0.052426,97354.0,97353.0,0.00320993]
[1733813692869,0.051426,97354.0,97353.0,0.00520993]
[1733813693174,0.051426,97354.0,97353.0,0.00420993]
[1733813693381,0.051426,97354.0,97353.0,0.00520993]
[1733813695985,0.051426,97354.0,97353.0,0.00620993]
[1733813697284,0.06645088,97363.0,97353.0,0.27995336]
[1733813697471,0.06645088,97363.0,97362.0,0.3608]
[1733813697678,0.05134,97365.0,97362.0,0.36404993]
[1733813697877,0.05134,97365.0,97363.0,0.03470993]
[1733813698184,0.05134,97365.0,97364.0,0.00324993]
[1733813699082,0.05234,97365.0,97364.0,0.00324993]
[1733813699684,0.05134,97365.0,97364.0,0.00324993]
[1733813699883,0.05234,97365.0,97364.0,0.00324993]
[1733813700989,0.05234,97365.0,97364.0,0.00324932]
[1733813706893,0.05234,97365.0,97364.0,4e-05]
[1733813707080,0.05234,97365.0,97364.0,0.00324951]
[1733813709793,0.14467966,97365.0,97364.0,0.00324951]
[1733813709996,0.05234,97365.0,97364.0,0.00324951]
[1733813711691,0.14467966,97365.0,97364.0,0.00324951]
[1733813712191,0.05234,97365.0,97364.0,0.00324951]
[1733813712394,0.05234,97365.0,97364.0,4e-05]
[1733813712599,0.14467966,97365.0,97364.0,0.00324967]
[1733813713286,0.05234,97365.0,97364.0,0.00324967]
[1733813713892,0.05234,97365.0,97364.0,0.00324943]
[1733813715287,0.001,97365.0,97364.0,0.00324943]
[1733813717996,0.001,97365.0,97364.0,4e-05]
[1733813718206,0.001,97365.0,97364.0,0.00324943]
[1733813720302,0.001,97365.0,97364.0,0.22615552]
[1733813721299,0.001,97365.0,97364.0,0.49163802]
[1733813721608,0.001,97365.0,97364.0,0.55735826]
[1733813722600,0.001,97365.0,97364.0,0.25725552]
[1733813723905,0.001,97365.0,97364.0,0.25404609]
[1733813724110,0.001,97365.0,97364.0,0.25725515]
[1733813724308,0.001,97365.0,97364.0,0.62433856]
[1733813724514,0.001,97365.0,97364.0,0.25725515]
[1733813727911,0.001,97365.0,97364.0,0.62433856]
[1733813728604,0.001,97365.0,97364.0,0.25725515]
[1733813729502,0.001,97365.0,97364.0,0.22615515]
[1733813730211,0.001,97365.0,97364.0,0.00324906]
[1733813730517,0.01079954,97365.0,97364.0,0.00324937]
[1733813730716,0.001,97365.0,97364.0,0.53076981]
[1733813731411,0.001,97365.0,97364.0,0.30901709]
[1733813731811,0.001,97365.0,97364.0,0.53111436]
[1733813732004,0.001,97365.0,97364.0,0.30901709]
[1733813732210,0.001,97365.0,97364.0,0.00324937]
[1733813732604,0.01040107,97365.0,97364.0,0.30901709]
[1733813732809,0.01040107,97365.0,97364.0,0.00324937]
[1733813735414,0.001,97365.0,97364.0,0.00324937]
[1733813735615,0.001,97365.0,97364.0,0.22512136]
[1733813736623,0.001,97365.0,97364.0,0.25972038]
[1733813736810,0.001,97365.0,97364.0,0.50138497]
[1733813737015,0.001,97365.0,97364.0,0.22512106]
[1733813737314,0.001,97365.0,97364.0,0.22812106]
[1733813737516,0.06645088,97374.0,97369.0,0.051338]
[1733813737713,0.18423376,97380.0,97373.0,0.30557266]
[1733813738118,0.18423376,97380.0,97379.0,4e-05]
[1733813738323,0.1936559,97380.0,97379.0,4e-05]
[1733813738523,0.06075414,97380.0,97379.0,4e-05]
[1733813739317,0.06075414,97380.0,97379.0,0.003249]
[1733813740324,0.06075414,97380.0,97379.0,0.004249]
[1733813740526,0.06075414,97380.0,97379.0,0.005249]
[1733813741120,0.06075414,97380.0,97379.0,0.00204]
[1733813741823,0.06075414,97380.0,97379.0,0.005249]
[1733813743027,0.00942214,97380.0,97379.0,0.005249]
[1733813743227,0.36136001,97383.0,97379.0,0.056581]
[1733813743414,0.36136001,97383.0,97380.0,0.003209]
[1733813743415,0.3608,97383.0,97380.0,0.003209]
[1733813743620,0.3608,97383.0,97381.0,0.003209]
[1733813743920,0.051328,97388.0,97382.0,0.003209]
[1733813744222,0.051328,97388.0,97386.0,0.24449627]
[1733813744446,0.051328,97388.0,97387.0,0.003209]
[1733813744447,0.06106033,97388.0,97387.0,0.003209]
[1733813744624,0.06106033,97388.0,97387.0,0.24768442]
[1733813744924,0.06106033,97388.0,97387.0,0.24772442]
[1733813745220,0.06106033,97388.0,97387.0,0.003249]
[1733813745422,0.06206033,97388.0,97387.0,0.003249]
[1733813746424,0.01073233,97388.0,97387.0,0.003249]
[1733813747129,0.01073233,97388.0,97387.0,0.24783723]
[1733813747323,0.01073233,97388.0,97387.0,0.00324876]
[1733813751628,0.00973233,97388.0,97387.0,0.00324876]
[1733813751831,0.051327,97391.0,97387.0,0.00324876]
[1733813752032,0.051327,97391.0,97389.0,0.24461735]
[1733813752330,0.051327,97391.0,97390.0,0.00320876]
[1733813752831,0.051327,97391.0,97390.0,0.00324876]
[1733813753133,0.06109684,97391.0,97390.0,0.00324876]
[1733813754333,0.06209684,97391.0,97390.0,0.00324876]
[1733813757431,0.06209684,97391.0,97390.0,4e-05]
[1733813761131,0.06209684,97391.0,97390.0,0.24465101]
[1733813762026,0.06209684,97391.0,97390.0,0.14827984]
[1733813762223,0.42289684,97391.0,97375.0,0.30557266]
[1733813762522,0.051335,97374.0,97373.0,0.3608]
[1733813762919,8e-05,97374.0,97373.0,0.3608]
[1733813763121,8e-05,97374.0,97373.0,0.60150985]
[1733813764038,8e-05,97374.0,97373.0,0.60750985]
[1733813764427,8e-05,97374.0,97373.0,0.60150985]
[1733813764735,8e-05,97374.0,97373.0,0.60650985]
[1733813765437,8e-05,97374.0,97373.0,0.60950985]
[1733813766433,8e-05,97374.0,97373.0,0.89654437]
[1733813767233,8e-05,97374.0,97373.0,0.53574437]
[1733813767431,8e-05,97374.0,97373.0,0.89654437]
[1733813767833,8e-05,97374.0,97373.0,0.60950985]
[1733813769127,8e-05,97374.0,97373.0,0.89654786]
[1733813769538,8e-05,97374.0,97373.0,0.89354786]
[1733813769839,8e-05,97374.0,97373.0,0.89654786]
[1733813770630,8e-05,97374.0,97373.0,0.89679077]
[1733813771934,8e-05,97374.0,97373.0,0.93134499]
[1733813774639,8e-05,97374.0,97373.0,0.93176697]
[1733813775343,8e-05,97374.0,97373.0,0.89721275]
[1733813777329,0.09224731,97386.0,97383.0,0.05133]
[1733813777536,0.051327,97389.0,97384.0,0.63296842]
[1733813777732,0.051327,97389.0,97387.0,0.36747657]
[1733813777932,0.051327,97389.0,97388.0,0.24106842]
[1733813778537,0.051327,97389.0,97388.0,0.24427712]
[1733813779042,0.06083417,97389.0,97388.0,0.24427712]
[1733813779630,0.06083417,97389.0,97388.0,0.24106842]
[1733813780043,0.06183417,97389.0,97388.0,0.24106842]
[1733813780541,0.06083417,97389.0,97388.0,0.24106842]
[1733813780736,0.06183417,97389.0,97388.0,0.24106842]
[1733813782040,0.01050717,97389.0,97388.0,0.24106842]
[1733813782641,0.00950717,97389.0,97388.0,0.24106842]
[1733813782845,0.001,97389.0,97388.0,0.24106842]
[1733813783233,0.47857388,97398.0,97388.0,0.24106842]
[1733813783438,0.001,97389.0,97385.0,0.051369]
[1733813783638,0.001,97389.0,97386.0,0.52679477]
[1733813783839,0.001,97389.0,97387.0,0.52679477]
[1733813784032,0.001,97389.0,97388.0,0.24033028]
[1733813784438,0.051323,97397.0,97388.0,0.24033028]
[1733813784636,0.051323,97397.0,97395.0,0.30603192]
[1733813784939,0.051324,97395.0,97394.0,0.30603484]
[1733813785142,0.051324,97395.0,97394.0,0.54645531]
[1733813785341,0.051324,97395.0,97393.0,0.30603484]
[1733813785540,0.051325,97393.0,97392.0,0.30603484]
[1733813785740,0.051326,97392.0,97389.0,0.30603484]
[1733813785946,0.09232801,97390.0,97388.0,0.30603484]
[1733813786247,8e-05,97389.0,97388.0,0.30603484]
[1733813786547,0.00108,97389.0,97388.0,0.30603484]
[1733813787137,8e-05,97389.0,97388.0,0.30603484]
[1733813787648,0.00108,97389.0,97388.0,0.30603484]
[1733813787947,0.09340801,97389.0,97387.0,0.30603484]
[1733813788342,0.09340801,97389.0,97385.0,4e-05]
[1733813788343,8e-05,97388.0,97385.0,4e-05]
[1733813788537,8e-05,97388.0,97386.0,0.2402334]
[1733813788748,8e-05,97388.0,97387.0,0.2402336]
[1733813789245,0.001,97389.0,97387.0,0.24003547]
[1733813789464,0.001,97389.0,97388.0,0.30602996]
[1733813789656,0.09240801,97390.0,97388.0,0.30606996]
[1733813789840,0.001,97389.0,97388.0,0.30606996]
[1733813790151,0.001,97389.0,97388.0,0.30602996]
[1733813790452,0.001,97389.0,97388.0,0.24000988]
[1733813790840,0.001,97389.0,97388.0,0.30602577]
[1733813791649,0.001,97389.0,97388.0,0.30923443]
[1733813791851,0.001,97389.0,97388.0,0.24310524]
[1733813792145,0.001,97389.0,97388.0,0.23989658]
[1733813792445,0.001,97389.0,97388.0,0.24310524]
[1733813793443,0.051407,97390.0,97388.0,0.24310524]
[1733813793642,0.051407,97390.0,97389.0,0.24310524]
[1733813794741,0.052407,97390.0,97389.0,0.24310524]
[1733813795446,0.052407,97390.0,97389.0,0.23989658]
[1733813795641,0.052407,97390.0,97389.0,0.24310523]
[1733813798853,0.14473501,97390.0,97389.0,0.23981569]
[1733813799156,0.14473501,97390.0,97389.0,0.24302433]
[1733813799655,0.14473501,97390.0,97389.0,0.23981569]
[1733813801159,0.052407,97390.0,97389.0,0.23981569]
[1733813802752,0.052407,97390.0,97389.0,0.2404853]
[1733813809749,0.052407,97390.0,97389.0,0.24144246]
[1733813809750,0.00108,97390.0,97389.0,0.24144246]
[1733813809952,0.03358,97390.0,97387.0,0.3061584]
[1733813810160,0.15457902,97389.0,97386.0,0.3061584]
[1733813810346,0.051328,97387.0,97386.0,0.3061584]
[1733813810547,0.051328,97387.0,97385.0,0.3061984]
[1733813810952,8e-05,97386.0,97385.0,0.3061984]
[1733813811665,8e-05,97386.0,97385.0,0.60212016]
[1733813812351,8e-05,97386.0,97385.0,0.6018486]
[1733813812754,8e-05,97386.0,97385.0,0.9690869]
[1733813812953,8e-05,97386.0,97385.0,0.6018486]
[1733813813158,0.00108,97386.0,97385.0,0.9690869]
[1733813813462,0.00108,97386.0,97385.0,0.6018486]
[1733813813956,0.18468742,97441.0,97404.0,0.051319]
[1733813814166,0.00995244,97436.0,97435.0,0.3608]
[1733813814349,0.02,97450.0,97435.0,0.3608]
[1733813814548,0.08645088,97450.0,97449.0,0.412096]
[1733813814859,0.02,97450.0,97449.0,0.41214355]
[1733813815049,0.00988064,97459.0,97449.0,1.08928563]
[1733813815250,0.051294,97452.0,97450.0,0.69780225]
[1733813815449,0.051294,97452.0,97451.0,0.3323673]
[1733813815861,0.051294,97452.0,97451.0,0.69781061]
[1733813816051,0.051294,97452.0,97451.0,0.3323673]
[1733813816257,0.051295,97450.0,97449.0,4.755e-05]
[1733813816455,0.051295,97450.0,97449.0,0.30422525]
[1733813816659,0.051375,97450.0,97449.0,4.755e-05]
[1733813817662,0.051375,97450.0,97449.0,0.00104755]
[1733813818455,0.06119269,97450.0,97449.0,0.00104755]
[1733813819475,0.0513,97441.0,97440.0,0.1322738]
[1733813819662,0.3608,97443.0,97435.0,0.3608]
[1733813819967,0.051302,97436.0,97435.0,0.3608]
[1733813820561,0.051382,97436.0,97435.0,0.3608]
[1733813821768,0.051309,97424.0,97423.0,0.3608]
[1733813822155,8e-05,97424.0,97423.0,0.3608]
[1733813822566,8e-05,97424.0,97423.0,0.6649777]
[1733813822767,8e-05,97424.0,97423.0,0.3608]
[1733813823271,0.00108,97424.0,97423.0,0.66431686]
[1733813824270,0.00108,97424.0,97423.0,0.3608]
[1733813826460,0.00108,97424.0,97423.0,0.66431686]
[1733813826863,0.00108,97424.0,97423.0,0.3608]
[1733813827063,0.00108,97424.0,97423.0,0.66431686]
[1733813827263,0.00980536,97432.0,97423.0,0.66431686]
[1733813827475,0.051306,97430.0,97428.0,0.24264506]
[1733813828070,0.10111317,97435.0,97426.0,0.24264506]
[1733813828071,0.051307,97427.0,97426.0,0.24264506]
[1733813828271,0.051308,97425.0,97423.0,0.3608]
[1733813829475,0.051308,97425.0,97418.0,0.3608]
[1733813829476,0.05131,97421.0,97420.0,0.24264506]
[1733813829971,0.05131,97421.0,97418.0,0.60344506]
[1733813829972,8e-05,97421.0,97418.0,0.60344506]
[1733813830170,8e-05,97421.0,97395.0,0.052004]
[1733813830171,0.0323,97420.0,97414.0,0.24264506]
[1733813830364,0.0323,97420.0,97411.0,0.24264506]
[1733813830365,0.051315,97412.0,97411.0,0.24264506]
[1733813830673,8e-05,97412.0,97411.0,0.24264506]
[1733813831759,0.051395,97412.0,97411.0,0.24364506]
[1733813831970,0.051395,97412.0,97411.0,0.001]
[1733813832275,8e-05,97412.0,97411.0,0.24364506]
[1733813832665,8e-05,97412.0,97411.0,0.001]
[1733813832865,8e-05,97412.0,97411.0,0.24589199]
[1733813833067,8e-05,97412.0,97411.0,0.24589272]
[1733813833367,8e-05,97412.0,97410.0,0.3608]
[1733813833672,8e-05,97412.0,97411.0,0.003]
[1733813833873,8e-05,97412.0,97411.0,0.32528458]
[1733813834769,0.051306,97430.0,97412.0,0.051315]
[1733813834973,0.051302,97438.0,97426.0,0.3608]
[1733813835165,0.051306,97430.0,97426.0,0.68308458]
[1733813835362,0.051306,97430.0,97428.0,0.30359576]
[1733813835578,0.051306,97430.0,97429.0,4e-05]
[1733813838271,0.051306,97430.0,97429.0,0.62544647]
[1733813839182,0.051306,97430.0,97429.0,0.32185071]
[1733813839777,0.051306,97430.0,97429.0,0.24328875]
[1733813840179,0.051306,97430.0,97429.0,4e-05]
[1733813843176,0.051306,97430.0,97429.0,0.32251061]
[1733813844075,0.051306,97430.0,97429.0,0.27372449]
[1733813846984,0.051306,97430.0,97429.0,0.57883335]
[1733813847171,0.051306,97430.0,97422.0,0.36425163]
[1733813847375,0.412109,97423.0,97421.0,0.36425163]
[1733813847568,0.19663479,97423.0,97421.0,0.36425163]
[1733813847773,0.19663479,97423.0,97421.0,0.36622422]
[1733813847978,0.0303,97422.0,97421.0,0.36622422]
[1733813848180,0.0303,97422.0,97417.0,0.36620503]
[1733813848181,0.05131,97421.0,97417.0,0.36620503]
[1733813848378,0.051312,97418.0,97416.0,0.36620503]
[1733813848682,8e-05,97417.0,97416.0,0.36620503]
[1733813848879,8e-05,97417.0,97402.0,0.42756783]
[1733813848880,0.051316,97411.0,97402.0,0.42756783]
[1733813849188,0.051396,97411.0,97410.0,0.73191343]
[1733813849480,8e-05,97411.0,97410.0,0.77682064]
[1733813849686,0.051396,97411.0,97410.0,0.77682064]
[1733813850070,0.051316,97411.0,97410.0,0.77682064]
[1733813850271,0.051316,97411.0,97410.0,0.77882064]
[1733813850878,0.051316,97411.0,97410.0,0.41902064]
[1733813851175,0.051316,97411.0,97410.0,0.77982064]
[1733813851973,0.051316,97411.0,97410.0,0.41702064]
[1733813852174,0.051316,97411.0,97410.0,0.77782064]
[1733813852479,0.051316,97411.0,97410.0,0.73191343]
[1733813853271,0.051316,97411.0,97410.0,0.73391343]
[1733813853477,0.051316,97411.0,97410.0,0.73491343]
[1733813854377,0.00977789,97413.0,97410.0,0.73491343]
[1733813854378,8e-05,97417.0,97410.0,0.73491343]
[1733813854581,0.051314,97414.0,97411.0,0.37111343]
[1733813854789,0.051314,97414.0,97412.0,0.37111343]
[1733813854981,0.051314,97414.0,97413.0,0.37111343]
[1733813856178,0.051314,97414.0,97413.0,0.37311343]
[1733813856374,8e-05,97417.0,97413.0,0.37311343]
[1733813856689,0.051313,97416.0,97414.0,0.37111343]
[1733813856981,0.051313,97416.0,97415.0,0.37111343]
[1733813857383,0.051313,97416.0,97415.0,0.41601994]
[1733813858088,0.051313,97416.0,97415.0,0.37111343]
[1733813858583,0.051313,97416.0,97415.0,0.83970743]
[1733813859182,0.051313,97416.0,97415.0,1.14693353]
[1733813859383,8e-05,97417.0,97415.0,1.63218094]
[1733813859579,8e-05,97417.0,97416.0,1.14593353]
[1733813859784,8e-05,97417.0,97416.0,1.14597353]
[1733813864286,8e-05,97417.0,97416.0,1.86757353]
[1733813865191,0.051306,97429.0,97416.0,1.91888653]
[1733813865391,0.051306,97429.0,97428.0,0.3608]
[1733813865688,0.051306,97429.0,97428.0,1.03817953]
[1733813865887,0.10111317,97450.0,97428.0,1.02763709]
[1733813866189,0.051296,97450.0,97449.0,4e-05]
[1733813866390,0.06130138,97450.0,97449.0,0.3062661]
[1733813868790,0.05137805,97466.0,97449.0,0.70931799]
[1733813868990,0.06136403,97466.0,97464.0,0.3608]
[1733813869192,0.06136403,97466.0,97465.0,4e-05]
[1733813870289,0.01007703,97466.0,97465.0,4e-05]
[1733813870697,0.01007703,97466.0,97465.0,0.00104]
[1733813871791,0.01007703,97466.0,97465.0,0.00204]
[1733813872193,0.01007703,97466.0,97465.0,0.24512426]
[1733813872591,0.01007703,97466.0,97465.0,0.00204]
[1733813876802,0.01007703,97466.0,97465.0,0.00524633]
[1733813880693,0.01007703,97466.0,97465.0,0.00524624]
[1733813881092,0.01007703,97466.0,97465.0,0.00204]
[1733813881303,0.01007703,97466.0,97465.0,0.00524624]